[Event "Titled Tuesday Blitz April 4 Late 2023"]
[White "Loiacono, Antonio"]
[Black "Cuenca Jimenez, Jose Fernando"]
[WhiteFideId "895415"]
[BlackFideId "2255570"]
[WhiteElo "2257"]
[BlackElo "2429"]
[Result "0-1"]
[Round "08"]
[TimeControl "180+2"]
[Date "2023.04.04"]
[WhiteClock "0:00:13"]
[BlackClock "0:00:03"]

1. e4 {[%clk 0:03:00]}  d6 {[%clk 0:02:59]} 2. d4 {[%clk 0:03:00]}  Nf6 {[%clk 0:03:00]} 3. Nc3 {[%clk 0:03:00]}  e5 {[%clk 0:03:00]} 4. dxe5 {[%clk 0:03:00]}  dxe5 {[%clk 0:03:01]} 5. Qxd8+ {[%clk 0:03:00]}  Kxd8 {[%clk 0:03:02]} 6. Bc4 {[%clk 0:03:01]}  Bb4 {[%clk 0:03:02]} 7. f3 {[%clk 0:02:56]}  Bxc3+ {[%clk 0:03:02]} 8. bxc3 {[%clk 0:02:56]}  Be6 {[%clk 0:03:03]} 9. Bxe6 {[%clk 0:02:56]}  fxe6 {[%clk 0:03:04]} 10. Be3 {[%clk 0:02:44]}  a5 {[%clk 0:03:00]} 11. Ne2 {[%clk 0:02:44]}  Nbd7 {[%clk 0:02:57]} 12. Rb1 {[%clk 0:02:43]}  Kc8 {[%clk 0:02:57]} 13. Nc1 {[%clk 0:02:42]}  Ne8 {[%clk 0:02:51]} 14. Nd3 {[%clk 0:02:41]}  Nd6 {[%clk 0:02:38]} 15. Bf2 {[%clk 0:02:39]}  Nc4 {[%clk 0:02:17]} 16. Ke2 {[%clk 0:02:33]}  Ra6 {[%clk 0:02:13]} 17. Bg3 {[%clk 0:02:29]}  Rc6 {[%clk 0:01:41]} 18. Rb5 {[%clk 0:02:26]}  b6 {[%clk 0:01:36]} 19. Rd1 {[%clk 0:02:09]}  Nd6 {[%clk 0:01:14]} 20. Rb3 {[%clk 0:01:27]}  a4 {[%clk 0:01:12]} 21. Rb2 {[%clk 0:01:09]}  Rxc3 {[%clk 0:01:09]} 22. Nxe5 {[%clk 0:01:04]}  a3 {[%clk 0:01:02]} 23. Rb3 {[%clk 0:00:55]}  Rxc2+ {[%clk 0:01:01]} 24. Kf1 {[%clk 0:00:52]}  Nxe5 {[%clk 0:00:47]} 25. Bxe5 {[%clk 0:00:51]}  Nc4 {[%clk 0:00:47]} 26. Bg3 {[%clk 0:00:28]}  Nd2+ {[%clk 0:00:36]} 27. Rxd2 {[%clk 0:00:27]}  Rxd2 {[%clk 0:00:37]} 28. Rxa3 {[%clk 0:00:27]}  Kb7 {[%clk 0:00:36]} 29. Be5 {[%clk 0:00:23]}  Ra8 {[%clk 0:00:21]} 30. Rc3 {[%clk 0:00:23]}  c5 {[%clk 0:00:20]} 31. Bf4 {[%clk 0:00:20]}  Rd7 {[%clk 0:00:12]} 32. a3 {[%clk 0:00:20]}  Kc6 {[%clk 0:00:12]} 33. h4 {[%clk 0:00:18]}  g6 {[%clk 0:00:11]} 34. Kg1 {[%clk 0:00:18]}  Rf7 {[%clk 0:00:10]} 35. g3 {[%clk 0:00:17]}  Rfa7 {[%clk 0:00:09]} 36. Bc1 {[%clk 0:00:17]}  b5 {[%clk 0:00:07]} 37. Be3 {[%clk 0:00:16]}  c4 {[%clk 0:00:07]} 38. Bxa7 {[%clk 0:00:15]}  Rxa7 {[%clk 0:00:06]} 39. Kf2 {[%clk 0:00:16]}  Kc5 {[%clk 0:00:06]} 40. Ke3 {[%clk 0:00:17]}  b4 {[%clk 0:00:05]} 41. axb4+ {[%clk 0:00:17]}  Kxb4 {[%clk 0:00:06]} 42. Rc1 {[%clk 0:00:17]}  c3 {[%clk 0:00:06]} 43. Kd3 {[%clk 0:00:17]}  Rd7+ {[%clk 0:00:06]} 44. Ke3 {[%clk 0:00:16]}  Kb3 {[%clk 0:00:05]} 45. Ra1 {[%clk 0:00:16]}  c2 {[%clk 0:00:05]} 46. f4 {[%clk 0:00:14]}  Kb2 {[%clk 0:00:05]} 47. Re1 {[%clk 0:00:10]}  Rd1 {[%clk 0:00:05]} 48. Re2 {[%clk 0:00:10]}  Kb1 {[%clk 0:00:04]} 49. Rxc2 {[%clk 0:00:09]}  Kxc2 {[%clk 0:00:05]} 50. g4 {[%clk 0:00:10]}  Kc3 {[%clk 0:00:05]} 51. f5 {[%clk 0:00:11]}  exf5 {[%clk 0:00:06]} 52. exf5 {[%clk 0:00:11]}  gxf5 {[%clk 0:00:06]} 53. gxf5 {[%clk 0:00:11]}  Kc4 {[%clk 0:00:06]} 54. Ke4 {[%clk 0:00:11]}  Kc5 {[%clk 0:00:07]} 55. Ke5 {[%clk 0:00:12]}  Re1+ {[%clk 0:00:07]} 56. Kf6 {[%clk 0:00:12]}  Kd6 {[%clk 0:00:07]} 57. Kg7 {[%clk 0:00:12]}  Rg1+ {[%clk 0:00:07]} 58. Kxh7 {[%clk 0:00:12]}  Ke5 {[%clk 0:00:07]} 59. h5 {[%clk 0:00:12]}  Kxf5 {[%clk 0:00:08]} 60. h6 {[%clk 0:00:13]}  Kf6 {[%clk 0:00:07]} 61. Kh8 {[%clk 0:00:14]}  Ra1 {[%clk 0:00:07]} 62. Kh7 {[%clk 0:00:13]}  Kf7 {[%clk 0:00:05]} 63. Kh8 {[%clk 0:00:13]}  Ra3 {[%clk 0:00:03]} 64. Kh7 {[%clk 0:00:13]}  Ra6 {[%clk 0:00:03]} 65. Kh8 {[%clk 0:00:13]}  Rxh6# {[%clk 0:00:03]} 0-1


[Site "https://www.chess.com"]

[Event "Titled Tuesday Blitz April 4 Late 2023"]
[White "Papp, Levente"]
[Black "Zeynalli, Rashad"]
[WhiteFideId "751243"]
[BlackFideId "13403320"]
[WhiteElo "2380"]
[BlackElo "2125"]
[Result "1-0"]
[Round "08"]
[TimeControl "180+2"]
[Date "2023.04.04"]
[WhiteClock "0:00:16"]
[BlackClock "0:00:24"]

1. b3 {[%clk 0:02:57]}  e5 {[%clk 0:02:54]} 2. Bb2 {[%clk 0:02:58]}  Nc6 {[%clk 0:02:52]} 3. c4 {[%clk 0:02:58]}  Nf6 {[%clk 0:02:48]} 4. Nf3 {[%clk 0:02:57]}  e4 {[%clk 0:02:46]} 5. Nd4 {[%clk 0:02:57]}  Bc5 {[%clk 0:02:46]} 6. Nf5 {[%clk 0:02:57]}  O-O {[%clk 0:02:45]} 7. e3 {[%clk 0:02:43]}  d5 {[%clk 0:02:41]} 8. cxd5 {[%clk 0:02:36]}  Qxd5 {[%clk 0:02:37]} 9. Ng3 {[%clk 0:02:24]}  Ne5 {[%clk 0:02:25]} 10. Nc3 {[%clk 0:01:57]}  Nd3+ {[%clk 0:02:23]} 11. Bxd3 {[%clk 0:01:57]}  Qxd3 {[%clk 0:02:23]} 12. Qb1 {[%clk 0:01:52]}  Qxb1+ {[%clk 0:01:59]} 13. Rxb1 {[%clk 0:01:53]}  Re8 {[%clk 0:01:59]} 14. Rc1 {[%clk 0:01:20]}  Bb6 {[%clk 0:01:27]} 15. O-O {[%clk 0:00:41]}  Bd7 {[%clk 0:01:26]} 16. d3 {[%clk 0:00:33]}  exd3 {[%clk 0:01:21]} 17. Rfd1 {[%clk 0:00:34]}  Bc6 {[%clk 0:01:12]} 18. Rxd3 {[%clk 0:00:33]}  Ng4 {[%clk 0:00:52]} 19. Nf5 {[%clk 0:00:23]}  Ne5 {[%clk 0:00:41]} 20. Rd2 {[%clk 0:00:21]}  Rad8 {[%clk 0:00:38]} 21. Rcd1 {[%clk 0:00:21]}  Rxd2 {[%clk 0:00:38]} 22. Rxd2 {[%clk 0:00:21]}  g6 {[%clk 0:00:35]} 23. Nd4 {[%clk 0:00:20]}  Bd7 {[%clk 0:00:35]} 24. Nd5 {[%clk 0:00:19]}  Re6 {[%clk 0:00:24]} 25. Nxe6 {[%clk 0:00:16]} 1-0


[Site "https://www.chess.com"]

[Event "Titled Tuesday Blitz April 4 Late 2023"]
[White "Alex_Sahakyan2006"]
[Black "Roebers, Eline"]
[BlackFideId "1058401"]
[WhiteElo "2623"]
[BlackElo "2522"]
[Result "1-0"]
[Round "08"]
[TimeControl "180+2"]
[Date "2023.04.04"]
[WhiteClock "0:02:01"]
[BlackClock "0:01:20"]

1. Nf3 {[%clk 0:03:00]}  f5 {[%clk 0:02:56]} 2. g3 {[%clk 0:02:57]}  Nf6 {[%clk 0:02:56]} 3. Bg2 {[%clk 0:02:58]}  g6 {[%clk 0:02:57]} 4. O-O {[%clk 0:02:58]}  Bg7 {[%clk 0:02:58]} 5. d3 {[%clk 0:02:59]}  O-O {[%clk 0:02:58]} 6. Nc3 {[%clk 0:02:59]}  d6 {[%clk 0:02:58]} 7. e4 {[%clk 0:02:59]}  Nc6 {[%clk 0:02:59]} 8. exf5 {[%clk 0:02:57]}  gxf5 {[%clk 0:02:57]} 9. d4 {[%clk 0:02:57]}  Ne4 {[%clk 0:02:43]} 10. Nxe4 {[%clk 0:02:54]}  fxe4 {[%clk 0:02:16]} 11. Ng5 {[%clk 0:02:52]}  d5 {[%clk 0:02:15]} 12. Qh5 {[%clk 0:02:52]}  Bf5 {[%clk 0:02:12]} 13. Bh3 {[%clk 0:02:53]}  Qc8 {[%clk 0:02:04]} 14. c3 {[%clk 0:02:24]}  e5 {[%clk 0:01:59]} 15. dxe5 {[%clk 0:02:11]}  Nxe5 {[%clk 0:02:00]} 16. Bf4 {[%clk 0:02:11]}  Bg6 {[%clk 0:01:33]} 17. Bxc8 {[%clk 0:02:03]}  Bxh5 {[%clk 0:01:33]} 18. Bxb7 {[%clk 0:02:04]}  Rad8 {[%clk 0:01:22]} 19. Ne6 {[%clk 0:02:04]}  Nf3+ {[%clk 0:01:20]} 20. Kg2 {[%clk 0:02:01]} 1-0


[Site "https://www.chess.com"]

[Event "Titled Tuesday Blitz April 4 Late 2023"]
[White "Ehlvest, Jaan"]
[Black "Mortazavi, Ali"]
[WhiteFideId "4500016"]
[BlackFideId "401323"]
[WhiteElo "2442"]
[BlackElo "2339"]
[Result "0-1"]
[Round "08"]
[TimeControl "180+2"]
[Date "2023.04.04"]
[WhiteClock "0:00:05"]
[BlackClock "0:00:09"]

1. e4 {[%clk 0:02:55]}  c6 {[%clk 0:02:59]} 2. d4 {[%clk 0:02:54]}  d5 {[%clk 0:03:00]} 3. e5 {[%clk 0:02:55]}  Bf5 {[%clk 0:03:01]} 4. h4 {[%clk 0:02:54]}  c5 {[%clk 0:02:58]} 5. dxc5 {[%clk 0:02:49]}  Nc6 {[%clk 0:02:58]} 6. g4 {[%clk 0:02:47]}  Bd7 {[%clk 0:02:57]} 7. Nf3 {[%clk 0:02:46]}  e6 {[%clk 0:02:55]} 8. Be3 {[%clk 0:02:44]}  Qc7 {[%clk 0:02:40]} 9. Nc3 {[%clk 0:02:40]}  a6 {[%clk 0:02:40]} 10. Qe2 {[%clk 0:02:35]}  Nxe5 {[%clk 0:02:24]} 11. Nxe5 {[%clk 0:02:35]}  Qxe5 {[%clk 0:02:24]} 12. O-O-O {[%clk 0:02:35]}  Nf6 {[%clk 0:02:00]} 13. Bg2 {[%clk 0:02:34]}  h5 {[%clk 0:01:49]} 14. f4 {[%clk 0:02:28]}  Qc7 {[%clk 0:01:48]} 15. g5 {[%clk 0:02:14]}  Ng4 {[%clk 0:01:48]} 16. Nxd5 {[%clk 0:02:10]}  exd5 {[%clk 0:01:40]} 17. Bd4+ {[%clk 0:02:09]}  Be7 {[%clk 0:01:30]} 18. Rhf1 {[%clk 0:02:02]}  Kf8 {[%clk 0:01:15]} 19. f5 {[%clk 0:01:55]}  Bxc5 {[%clk 0:01:15]} 20. Bxc5+ {[%clk 0:00:56]}  Qxc5 {[%clk 0:01:15]} 21. Rxd5 {[%clk 0:00:55]}  Qe3+ {[%clk 0:01:07]} 22. Qxe3 {[%clk 0:00:55]}  Nxe3 {[%clk 0:01:07]} 23. Rxd7 {[%clk 0:00:55]}  Nxg2 {[%clk 0:01:07]} 24. f6 {[%clk 0:00:47]}  gxf6 {[%clk 0:00:46]} 25. Rxf6 {[%clk 0:00:45]}  Rh7 {[%clk 0:00:46]} 26. g6 {[%clk 0:00:34]}  Rg7 {[%clk 0:00:46]} 27. gxf7 {[%clk 0:00:26]}  Nxh4 {[%clk 0:00:40]} 28. Rh6 {[%clk 0:00:26]}  Ng6 {[%clk 0:00:33]} 29. Rxh5 {[%clk 0:00:25]}  b5 {[%clk 0:00:25]} 30. Rf5 {[%clk 0:00:23]}  Ne7 {[%clk 0:00:24]} 31. Rc5 {[%clk 0:00:18]}  Rxf7 {[%clk 0:00:23]} 32. Rcc7 {[%clk 0:00:18]}  a5 {[%clk 0:00:15]} 33. b3 {[%clk 0:00:17]}  b4 {[%clk 0:00:16]} 34. Kb2 {[%clk 0:00:17]}  Rg7 {[%clk 0:00:16]} 35. Rb7 {[%clk 0:00:15]}  Rf7 {[%clk 0:00:16]} 36. Rdc7 {[%clk 0:00:15]}  Rh7 {[%clk 0:00:16]} 37. a4 {[%clk 0:00:13]}  Rg7 {[%clk 0:00:15]} 38. Rc5 {[%clk 0:00:12]}  Rg2 {[%clk 0:00:12]} 39. Rbb5 {[%clk 0:00:10]}  Rd8 {[%clk 0:00:11]} 40. Rxa5 {[%clk 0:00:09]}  Rdd2 {[%clk 0:00:08]} 41. Rab5 {[%clk 0:00:09]}  Ng6 {[%clk 0:00:09]} 42. a5 {[%clk 0:00:09]}  Nf4 {[%clk 0:00:09]} 43. a6 {[%clk 0:00:06]}  Nd3+ {[%clk 0:00:09]} 44. Ka2 {[%clk 0:00:06]}  Nxc5 {[%clk 0:00:09]} 45. Rxc5 {[%clk 0:00:05]}  Rxc2+ {[%clk 0:00:09]} 0-1


[Site "https://www.chess.com"]

[Event "Titled Tuesday Blitz April 4 Late 2023"]
[White "Bellahcene, Bilel"]
[Black "Goroshkov, Maksym"]
[WhiteFideId "696358"]
[BlackFideId "14142716"]
[WhiteElo "2566"]
[BlackElo "2322"]
[Result "1-0"]
[Round "08"]
[TimeControl "180+2"]
[Date "2023.04.04"]
[WhiteClock "0:00:05"]
[BlackClock "0:00:46"]

1. e4 {[%clk 0:03:00]}  e5 {[%clk 0:02:59]} 2. Nf3 {[%clk 0:02:57]}  d6 {[%clk 0:02:59]} 3. c4 {[%clk 0:02:51]}  Nf6 {[%clk 0:02:59]} 4. Nc3 {[%clk 0:02:49]}  c5 {[%clk 0:02:57]} 5. g3 {[%clk 0:02:49]}  Nc6 {[%clk 0:02:57]} 6. Bg2 {[%clk 0:02:50]}  Be6 {[%clk 0:02:56]} 7. d3 {[%clk 0:02:50]}  Be7 {[%clk 0:02:56]} 8. Ng5 {[%clk 0:02:44]}  Bd7 {[%clk 0:02:56]} 9. f4 {[%clk 0:02:43]}  Nd4 {[%clk 0:02:53]} 10. O-O {[%clk 0:02:42]}  O-O {[%clk 0:02:50]} 11. Be3 {[%clk 0:02:37]}  Ng4 {[%clk 0:02:47]} 12. Bd2 {[%clk 0:02:31]}  exf4 {[%clk 0:02:45]} 13. gxf4 {[%clk 0:02:23]}  Bxg5 {[%clk 0:02:44]} 14. fxg5 {[%clk 0:02:22]}  Ne5 {[%clk 0:02:44]} 15. Bf4 {[%clk 0:02:18]}  Bg4 {[%clk 0:02:42]} 16. Qd2 {[%clk 0:01:52]}  Nef3+ {[%clk 0:02:41]} 17. Bxf3 {[%clk 0:01:52]}  Nxf3+ {[%clk 0:02:42]} 18. Rxf3 {[%clk 0:01:52]}  Bxf3 {[%clk 0:02:43]} 19. Qf2 {[%clk 0:01:52]}  Bg4 {[%clk 0:02:42]} 20. Qg3 {[%clk 0:01:53]}  Qd7 {[%clk 0:02:31]} 21. Bxd6 {[%clk 0:01:48]}  Rfd8 {[%clk 0:02:31]} 22. Bxc5 {[%clk 0:01:38]}  Qxd3 {[%clk 0:02:19]} 23. Qxg4 {[%clk 0:01:31]}  Qxc4 {[%clk 0:02:20]} 24. Be3 {[%clk 0:01:20]}  Rd3 {[%clk 0:02:18]} 25. Qf4 {[%clk 0:01:16]}  Rad8 {[%clk 0:02:06]} 26. Rf1 {[%clk 0:01:13]}  Kh8 {[%clk 0:01:49]} 27. h4 {[%clk 0:01:08]}  Qe6 {[%clk 0:01:42]} 28. Kg2 {[%clk 0:01:01]}  Re8 {[%clk 0:01:35]} 29. Rf3 {[%clk 0:00:54]}  a6 {[%clk 0:01:30]} 30. Bf2 {[%clk 0:00:32]}  Rxf3 {[%clk 0:01:29]} 31. Qxf3 {[%clk 0:00:33]}  b5 {[%clk 0:01:29]} 32. a3 {[%clk 0:00:33]}  Qb3 {[%clk 0:01:28]} 33. Qe2 {[%clk 0:00:26]}  b4 {[%clk 0:01:24]} 34. axb4 {[%clk 0:00:26]}  Qxb4 {[%clk 0:01:24]} 35. h5 {[%clk 0:00:26]}  Kg8 {[%clk 0:01:21]} 36. h6 {[%clk 0:00:11]}  Qa5 {[%clk 0:01:18]} 37. Be3 {[%clk 0:00:09]}  Qe5 {[%clk 0:01:09]} 38. Qf3 {[%clk 0:00:06]}  Rb8 {[%clk 0:01:06]} 39. Qf2 {[%clk 0:00:06]}  Rd8 {[%clk 0:00:55]} 40. hxg7 {[%clk 0:00:06]}  Qxg7 {[%clk 0:00:52]} 41. Nd5 {[%clk 0:00:06]}  Qg6 {[%clk 0:00:46]} 42. Ne7+ {[%clk 0:00:05]} 1-0


[Site "https://www.chess.com"]

[Event "Titled Tuesday Blitz April 4 Late 2023"]
[White "Santos Flores, Alberto"]
[Black "Di Berardino, Diego Rafael"]
[WhiteFideId "3601234"]
[BlackFideId "2105446"]
[WhiteElo "2235"]
[BlackElo "2432"]
[Result "0-1"]
[Round "08"]
[TimeControl "180+2"]
[Date "2023.04.04"]
[WhiteClock "0:00:06"]
[BlackClock "0:00:43"]

1. d4 {[%clk 0:03:00]}  d5 {[%clk 0:02:58]} 2. Bf4 {[%clk 0:03:00]}  Nf6 {[%clk 0:02:57]} 3. e3 {[%clk 0:02:59]}  c5 {[%clk 0:02:58]} 4. c3 {[%clk 0:02:57]}  Nc6 {[%clk 0:02:57]} 5. Nd2 {[%clk 0:02:57]}  cxd4 {[%clk 0:02:57]} 6. exd4 {[%clk 0:02:56]}  Bf5 {[%clk 0:02:58]} 7. Ngf3 {[%clk 0:02:55]}  e6 {[%clk 0:02:58]} 8. Nh4 {[%clk 0:02:54]}  Bg6 {[%clk 0:02:57]} 9. Nxg6 {[%clk 0:02:54]}  hxg6 {[%clk 0:02:58]} 10. Bd3 {[%clk 0:02:50]}  Bd6 {[%clk 0:02:58]} 11. Bxd6 {[%clk 0:02:42]}  Qxd6 {[%clk 0:02:58]} 12. h3 {[%clk 0:02:43]}  g5 {[%clk 0:02:48]} 13. Qe2 {[%clk 0:02:20]}  g4 {[%clk 0:02:46]} 14. O-O-O {[%clk 0:01:59]}  gxh3 {[%clk 0:02:43]} 15. Rxh3 {[%clk 0:01:59]}  Rxh3 {[%clk 0:02:43]} 16. gxh3 {[%clk 0:02:00]}  Qf4 {[%clk 0:02:35]} 17. Qf3 {[%clk 0:01:55]}  Qxf3 {[%clk 0:02:34]} 18. Nxf3 {[%clk 0:01:55]}  Ke7 {[%clk 0:02:32]} 19. Rg1 {[%clk 0:01:54]}  g6 {[%clk 0:02:32]} 20. h4 {[%clk 0:01:50]}  Rh8 {[%clk 0:02:32]} 21. Re1 {[%clk 0:01:30]}  Nh5 {[%clk 0:02:21]} 22. Kd2 {[%clk 0:01:25]}  Nf4 {[%clk 0:02:20]} 23. Bf1 {[%clk 0:01:15]}  Nb8 {[%clk 0:02:18]} 24. Ke3 {[%clk 0:01:13]}  Nh5 {[%clk 0:02:16]} 25. Rc1 {[%clk 0:00:58]}  Nd7 {[%clk 0:02:14]} 26. c4 {[%clk 0:00:54]}  dxc4 {[%clk 0:02:13]} 27. Rxc4 {[%clk 0:00:54]}  Nhf6 {[%clk 0:02:09]} 28. Kd2 {[%clk 0:00:38]}  Nd5 {[%clk 0:02:04]} 29. Rc1 {[%clk 0:00:33]}  N7f6 {[%clk 0:02:01]} 30. Bd3 {[%clk 0:00:33]}  Ng4 {[%clk 0:01:57]} 31. Rf1 {[%clk 0:00:25]}  Nf4 {[%clk 0:01:52]} 32. Be4 {[%clk 0:00:20]}  b6 {[%clk 0:01:52]} 33. a3 {[%clk 0:00:15]}  Rh5 {[%clk 0:01:49]} 34. Bb1 {[%clk 0:00:10]}  a5 {[%clk 0:01:47]} 35. Be4 {[%clk 0:00:10]}  Rb5 {[%clk 0:01:44]} 36. Kc2 {[%clk 0:00:09]}  Nf6 {[%clk 0:01:37]} 37. Bc6 {[%clk 0:00:07]}  Rh5 {[%clk 0:01:36]} 38. Rh1 {[%clk 0:00:05]}  Rh8 {[%clk 0:01:35]} 39. Kd2 {[%clk 0:00:04]}  Rc8 {[%clk 0:01:34]} 40. Bb5 {[%clk 0:00:05]}  Ng4 {[%clk 0:01:32]} 41. Rf1 {[%clk 0:00:04]}  Rd8 {[%clk 0:01:23]} 42. Kc2 {[%clk 0:00:03]}  Nh3 {[%clk 0:01:14]} 43. Ne5 {[%clk 0:00:01]}  Nxe5 {[%clk 0:01:07]} 44. dxe5 {[%clk 0:00:02]}  Rd5 {[%clk 0:01:07]} 45. a4 {[%clk 0:00:02]}  Rxe5 {[%clk 0:01:03]} 46. Rd1 {[%clk 0:00:02]}  Rc5+ {[%clk 0:00:57]} 47. Kb3 {[%clk 0:00:02]}  Rd5 {[%clk 0:00:51]} 48. Rxd5 {[%clk 0:00:02]}  exd5 {[%clk 0:00:51]} 49. f3 {[%clk 0:00:01]}  Nf4 {[%clk 0:00:50]} 50. Kc3 {[%clk 0:00:01]}  Kd6 {[%clk 0:00:50]} 51. Kd4 {[%clk 0:00:01]}  Ng2 {[%clk 0:00:41]} 52. Be8 {[%clk 0:00:02]}  Nxh4 {[%clk 0:00:41]} 53. Bxf7 {[%clk 0:00:02]}  Nxf3+ {[%clk 0:00:41]} 54. Ke3 {[%clk 0:00:02]}  Ne5 {[%clk 0:00:42]} 55. Be8 {[%clk 0:00:02]}  Nc4+ {[%clk 0:00:42]} 56. Kd4 {[%clk 0:00:03]}  Nxb2 {[%clk 0:00:42]} 57. Bxg6 {[%clk 0:00:03]}  Nxa4 {[%clk 0:00:42]} 58. Bd3 {[%clk 0:00:04]}  Nc5 {[%clk 0:00:42]} 59. Bb5 {[%clk 0:00:05]}  Ne6+ {[%clk 0:00:42]} 60. Kc3 {[%clk 0:00:04]}  Kc5 {[%clk 0:00:43]} 61. Be2 {[%clk 0:00:05]}  d4+ {[%clk 0:00:42]} 62. Kc2 {[%clk 0:00:05]}  Nf4 {[%clk 0:00:42]} 63. Bf3 {[%clk 0:00:05]}  Kb4 {[%clk 0:00:42]} 64. Kb2 {[%clk 0:00:05]}  a4 {[%clk 0:00:42]} 65. Ka2 {[%clk 0:00:05]}  a3 {[%clk 0:00:42]} 66. Bd1 {[%clk 0:00:05]}  d3 {[%clk 0:00:42]} 67. Bf3 {[%clk 0:00:05]}  d2 {[%clk 0:00:42]} 68. Bd1 {[%clk 0:00:05]}  Nd5 {[%clk 0:00:43]} 69. Bc2 {[%clk 0:00:05]}  Nc3+ {[%clk 0:00:43]} 70. Ka1 {[%clk 0:00:05]}  d1=Q+ {[%clk 0:00:42]} 71. Bxd1 {[%clk 0:00:05]}  Nxd1 {[%clk 0:00:43]} 72. Ka2 {[%clk 0:00:06]}  Ka4 {[%clk 0:00:42]} 73. Kb1 {[%clk 0:00:06]}  Kb3 {[%clk 0:00:43]} 74. Ka1 {[%clk 0:00:06]}  Ne3 {[%clk 0:00:42]} 75. Kb1 {[%clk 0:00:06]}  a2+ {[%clk 0:00:43]} 76. Kc1 {[%clk 0:00:06]}  a1=Q+ {[%clk 0:00:43]} 0-1


[Site "https://www.chess.com"]

[Event "Titled Tuesday Blitz April 4 Late 2023"]
[White "Kavutskiy, Konstantin"]
[Black "QuiesPrecatio"]
[WhiteFideId "2026384"]
[WhiteElo "2323"]
[BlackElo "2470"]
[Result "1-0"]
[Round "08"]
[TimeControl "180+2"]
[Date "2023.04.04"]
[WhiteClock "0:00:29"]
[BlackClock "0:00:04"]

1. d4 {[%clk 0:03:00]}  Nf6 {[%clk 0:02:49]} 2. Bg5 {[%clk 0:03:01]}  e6 {[%clk 0:02:42]} 3. Nd2 {[%clk 0:03:01]}  d5 {[%clk 0:02:42]} 4. e3 {[%clk 0:03:01]}  Be7 {[%clk 0:02:42]} 5. Bd3 {[%clk 0:03:01]}  c5 {[%clk 0:02:42]} 6. c3 {[%clk 0:03:01]}  Nc6 {[%clk 0:02:43]} 7. Ngf3 {[%clk 0:03:01]}  h6 {[%clk 0:02:43]} 8. Bh4 {[%clk 0:03:01]}  b6 {[%clk 0:02:44]} 9. O-O {[%clk 0:02:57]}  Bb7 {[%clk 0:02:44]} 10. Ne5 {[%clk 0:02:53]}  Nxe5 {[%clk 0:02:38]} 11. dxe5 {[%clk 0:02:54]}  Nd7 {[%clk 0:02:38]} 12. Bxe7 {[%clk 0:02:53]}  Qxe7 {[%clk 0:02:39]} 13. f4 {[%clk 0:02:51]}  O-O {[%clk 0:02:34]} 14. Qh5 {[%clk 0:02:46]}  Qe8 {[%clk 0:02:13]} 15. Qh4 {[%clk 0:02:12]}  f6 {[%clk 0:01:51]} 16. Nf3 {[%clk 0:01:47]}  fxe5 {[%clk 0:01:43]} 17. Nxe5 {[%clk 0:01:48]}  Nxe5 {[%clk 0:01:38]} 18. fxe5 {[%clk 0:01:49]}  Qd7 {[%clk 0:01:27]} 19. Qg4 {[%clk 0:01:40]}  Rxf1+ {[%clk 0:00:57]} 20. Rxf1 {[%clk 0:01:41]}  Qe8 {[%clk 0:00:57]} 21. Rf6 {[%clk 0:01:38]}  Kh8 {[%clk 0:00:43]} 22. Rxe6 {[%clk 0:01:35]}  Qf7 {[%clk 0:00:39]} 23. Bg6 {[%clk 0:01:25]}  Qf8 {[%clk 0:00:39]} 24. Bf5 {[%clk 0:01:18]}  Qf7 {[%clk 0:00:19]} 25. Qg6 {[%clk 0:00:59]}  Qxg6 {[%clk 0:00:15]} 26. Bxg6 {[%clk 0:01:00]}  Rf8 {[%clk 0:00:13]} 27. Re7 {[%clk 0:00:57]}  Ba6 {[%clk 0:00:13]} 28. h3 {[%clk 0:00:58]}  Bc4 {[%clk 0:00:06]} 29. b3 {[%clk 0:00:56]}  Be2 {[%clk 0:00:06]} 30. e6 {[%clk 0:00:54]}  a5 {[%clk 0:00:06]} 31. Rf7 {[%clk 0:00:51]}  Rb8 {[%clk 0:00:05]} 32. e7 {[%clk 0:00:50]}  Kg8 {[%clk 0:00:06]} 33. Rf2 {[%clk 0:00:44]}  Bb5 {[%clk 0:00:04]} 34. Bf7+ {[%clk 0:00:39]}  Kh8 {[%clk 0:00:04]} 35. Bxd5 {[%clk 0:00:40]}  Re8 {[%clk 0:00:03]} 36. Rf8+ {[%clk 0:00:37]}  Kh7 {[%clk 0:00:03]} 37. Bg8+ {[%clk 0:00:32]}  Kg6 {[%clk 0:00:03]} 38. Bf7+ {[%clk 0:00:32]}  Kf6 {[%clk 0:00:02]} 39. Bxe8+ {[%clk 0:00:32]}  Kxe7 {[%clk 0:00:03]} 40. Bxb5 {[%clk 0:00:29]}  Kxf8 {[%clk 0:00:04]} 1-0


[Site "https://www.chess.com"]

[Event "Titled Tuesday Blitz April 4 Late 2023"]
[White "Ambartsumova, Karina"]
[Black "Harriott, Tyrell"]
[WhiteFideId "4166299"]
[BlackFideId "2086484"]
[WhiteElo "2240"]
[BlackElo "2107"]
[Result "1-0"]
[Round "08"]
[TimeControl "180+2"]
[Date "2023.04.04"]
[WhiteClock "0:00:29"]
[BlackClock "0:00:06"]

1. e4 {[%clk 0:02:59]}  e6 {[%clk 0:03:00]} 2. d4 {[%clk 0:02:55]}  d5 {[%clk 0:03:00]} 3. Nc3 {[%clk 0:02:55]}  f5 {[%clk 0:02:57]} 4. exd5 {[%clk 0:02:51]}  exd5 {[%clk 0:02:57]} 5. Nf3 {[%clk 0:02:51]}  Nf6 {[%clk 0:02:55]} 6. Bd3 {[%clk 0:02:50]}  Bd6 {[%clk 0:02:55]} 7. O-O {[%clk 0:02:51]}  O-O {[%clk 0:02:55]} 8. Ne5 {[%clk 0:02:51]}  Nc6 {[%clk 0:02:55]} 9. Nxc6 {[%clk 0:02:39]}  bxc6 {[%clk 0:02:56]} 10. Ne2 {[%clk 0:02:38]}  Ne4 {[%clk 0:02:55]} 11. Bf4 {[%clk 0:02:38]}  Be7 {[%clk 0:02:55]} 12. f3 {[%clk 0:02:38]}  Ng5 {[%clk 0:02:55]} 13. Qd2 {[%clk 0:02:34]}  Ne6 {[%clk 0:02:55]} 14. Be5 {[%clk 0:02:34]}  c5 {[%clk 0:02:24]} 15. c3 {[%clk 0:02:30]}  Bb7 {[%clk 0:02:05]} 16. Rae1 {[%clk 0:02:27]}  cxd4 {[%clk 0:02:01]} 17. cxd4 {[%clk 0:02:05]}  c5 {[%clk 0:02:00]} 18. Nf4 {[%clk 0:01:50]}  Nxd4 {[%clk 0:01:57]} 19. Bxd4 {[%clk 0:01:47]}  cxd4 {[%clk 0:01:49]} 20. Ne6 {[%clk 0:01:47]}  Qb6 {[%clk 0:01:45]} 21. Nxf8 {[%clk 0:01:45]}  Bb4 {[%clk 0:01:46]} 22. Nd7 {[%clk 0:01:28]}  Qd6 {[%clk 0:01:34]} 23. Qg5 {[%clk 0:01:18]}  Qxd7 {[%clk 0:01:02]} 24. Bxf5 {[%clk 0:01:14]}  Qd6 {[%clk 0:00:52]} 25. Re6 {[%clk 0:01:02]}  Qf8 {[%clk 0:00:51]} 26. Qh5 {[%clk 0:00:56]}  Qf7 {[%clk 0:00:26]} 27. Qxh7+ {[%clk 0:00:52]}  Kf8 {[%clk 0:00:26]} 28. Qh8+ {[%clk 0:00:43]}  Qg8 {[%clk 0:00:26]} 29. Qh4 {[%clk 0:00:43]}  Qf7 {[%clk 0:00:20]} 30. Qxd4 {[%clk 0:00:43]}  Ba5 {[%clk 0:00:19]} 31. Qc5+ {[%clk 0:00:40]}  Kg8 {[%clk 0:00:17]} 32. Qxa5 {[%clk 0:00:38]}  Qxf5 {[%clk 0:00:16]} 33. Rfe1 {[%clk 0:00:39]}  Qf7 {[%clk 0:00:13]} 34. Re7 {[%clk 0:00:38]}  Qf6 {[%clk 0:00:08]} 35. Rxb7 {[%clk 0:00:38]}  Qd4+ {[%clk 0:00:09]} 36. Kh1 {[%clk 0:00:37]}  Qf2 {[%clk 0:00:09]} 37. Rbe7 {[%clk 0:00:35]}  Rf8 {[%clk 0:00:07]} 38. Qc3 {[%clk 0:00:34]}  Rf7 {[%clk 0:00:07]} 39. Rxf7 {[%clk 0:00:33]}  Kxf7 {[%clk 0:00:08]} 40. a4 {[%clk 0:00:30]}  Kg8 {[%clk 0:00:07]} 41. a5 {[%clk 0:00:30]}  d4 {[%clk 0:00:07]} 42. Qc8+ {[%clk 0:00:29]}  Kh7 {[%clk 0:00:07]} 43. Qf5+ {[%clk 0:00:29]}  Kh6 {[%clk 0:00:06]} 44. Re6+ {[%clk 0:00:29]} 1-0


[Site "https://www.chess.com"]